[Event "Early-Titled-Tuesday-Blitz-July-09-2024"]
[Site "Chess.com"]
[Date "2024.07.09"]
[Round "2"]
[White "HaryKane"]
[Black "evgchess5"]
[Result "1-0"]
[WhiteElo "2612"]
[BlackElo "2856"]
[TimeControl "180+1"]
[EndTime "8:17:50 PDT"]
[Termination "HaryKane won on time"]

1. e4 {[%clk 0:03:00.9]} 1... c5 {[%clk 0:02:57]} 2. Nf3 {[%clk 0:03:00]} 2...
e6 {[%clk 0:02:57.3]} 3. d4 {[%clk 0:03:00]} 3... cxd4 {[%clk 0:02:57.8]} 4.
Nxd4 {[%clk 0:03:00.4]} 4... Nc6 {[%clk 0:02:58]} 5. Nc3 {[%clk 0:03:00.9]} 5...
a6 {[%clk 0:02:58]} 6. Nb3 {[%clk 0:03:00.7]} 6... Nf6 {[%clk 0:02:57.1]} 7. Bd3
{[%clk 0:03:01.3]} 7... b5 {[%clk 0:02:54.7]} 8. O-O {[%clk 0:03:01]} 8... d6
{[%clk 0:02:52.9]} 9. Qe2 {[%clk 0:03:01.4]} 9... Be7 {[%clk 0:02:51.5]} 10. Bd2
{[%clk 0:03:02]} 10... O-O {[%clk 0:02:48.6]} 11. Rae1 {[%clk 0:03:02.5]} 11...
b4 {[%clk 0:02:38.9]} 12. Nd1 {[%clk 0:03:01.9]} 12... a5 {[%clk 0:02:37.3]} 13.
c3 {[%clk 0:03:02.5]} 13... a4 {[%clk 0:02:17.1]} 14. Nd4 {[%clk 0:03:02.6]}
14... Nxd4 {[%clk 0:01:34.8]} 15. cxd4 {[%clk 0:03:03.5]} 15... Qb6 {[%clk
0:01:34.5]} 16. Be3 {[%clk 0:02:59.9]} 16... Ba6 {[%clk 0:01:24.7]} 17. f4
{[%clk 0:02:55]} 17... Nxe4 {[%clk 0:01:08.4]} 18. f5 {[%clk 0:02:48.4]} 18...
d5 {[%clk 0:01:04.4]} 19. Bxa6 {[%clk 0:02:34.7]} 19... Qxa6 {[%clk 0:01:04.4]}
20. Qg4 {[%clk 0:02:33.9]} 20... Bf6 {[%clk 0:01:01.8]} 21. Nf2 {[%clk
0:02:29.4]} 21... Nxf2 {[%clk 0:00:57.3]} 22. Rxf2 {[%clk 0:02:30.3]} 22... Rfe8
{[%clk 0:00:49.6]} 23. Qf3 {[%clk 0:02:18.3]} 23... Qd3 {[%clk 0:00:36.5]} 24.
fxe6 {[%clk 0:01:20.9]} 24... Rxe6 {[%clk 0:00:36.3]} 25. Rd2 {[%clk 0:01:21.1]}
25... Qe4 {[%clk 0:00:33]} 26. Qf1 {[%clk 0:01:11]} 26... Rae8 {[%clk
0:00:31.7]} 27. Bf2 {[%clk 0:01:11.1]} 27... Qf4 {[%clk 0:00:30.4]} 28. Red1
{[%clk 0:01:05.9]} 28... h5 {[%clk 0:00:27.5]} 29. h3 {[%clk 0:01:03.3]} 29...
Re4 {[%clk 0:00:24.9]} 30. Qb5 {[%clk 0:01:01.4]} 30... Qf5 {[%clk 0:00:18.6]}
31. Qxa4 {[%clk 0:00:52.1]} 31... Bg5 {[%clk 0:00:17.7]} 32. Rd3 {[%clk
0:00:47.6]} 32... Re2 {[%clk 0:00:13.2]} 33. Rf3 {[%clk 0:00:47.5]} 33... Qc2
{[%clk 0:00:13]} 34. Qxc2 {[%clk 0:00:39.9]} 34... Rxc2 {[%clk 0:00:12.7]} 35.
h4 {[%clk 0:00:31.9]} 35... Bf6 {[%clk 0:00:11.2]} 36. a3 {[%clk 0:00:28.3]}
36... Rxb2 {[%clk 0:00:09.6]} 37. axb4 {[%clk 0:00:29]} 37... Rxb4 {[%clk
0:00:09.7]} 38. Rf5 {[%clk 0:00:29.3]} 38... Rb5 {[%clk 0:00:07.9]} 39. Rf1
{[%clk 0:00:21.7]} 39... Re4 {[%clk 0:00:06.9]} 40. Kh1 {[%clk 0:00:15.3]} 40...
Bxd4 {[%clk 0:00:04.8]} 41. Bxd4 {[%clk 0:00:15.2]} 41... Rxd4 {[%clk
0:00:05.1]} 42. Rxf7 {[%clk 0:00:14.4]} 42... Rxh4+ {[%clk 0:00:05.1]} 43. Kg1
{[%clk 0:00:15.1]} 43... Rg4 {[%clk 0:00:05.3]} 44. Rf8+ {[%clk 0:00:15.1]}
44... Kh7 {[%clk 0:00:05.3]} 45. R8f2 {[%clk 0:00:16]} 45... Kg6 {[%clk
0:00:04.3]} 46. Re1 {[%clk 0:00:15.5]} 46... Rb6 {[%clk 0:00:03.8]} 47. Kh2
{[%clk 0:00:12.8]} 47... Re6 {[%clk 0:00:03.3]} 48. Rxe6+ {[%clk 0:00:12.2]} 1-0

[Event "Early-Titled-Tuesday-Blitz-July-09-2024"]
[Site "Chess.com"]
[Date "2024.07.09"]
[Round "2"]
[White "CSB7"]
[Black "subham777"]
[Result "1-0"]
[WhiteElo "2784"]
[BlackElo "2551"]
[TimeControl "180+1"]
[EndTime "8:17:52 PDT"]
[Termination "CSB7 won by resignation"]

1. e4 {[%clk 0:03:00.9]} 1... e6 {[%clk 0:02:59.1]} 2. d4 {[%clk 0:03:00.2]}
2... d5 {[%clk 0:02:58.6]} 3. Nc3 {[%clk 0:03:00]} 3... Nf6 {[%clk 0:02:58.2]}
4. e5 {[%clk 0:02:59.6]} 4... Nfd7 {[%clk 0:02:55.8]} 5. f4 {[%clk 0:02:59.2]}
5... c5 {[%clk 0:02:54.4]} 6. Nf3 {[%clk 0:02:59.8]} 6... Nc6 {[%clk 0:02:54.3]}
7. Be3 {[%clk 0:03:00.3]} 7... Be7 {[%clk 0:02:54.8]} 8. Qd2 {[%clk 0:02:57.1]}
8... a6 {[%clk 0:02:55.2]} 9. Bd3 {[%clk 0:02:52.4]} 9... b5 {[%clk 0:02:53.2]}
10. Qf2 {[%clk 0:02:52.3]} 10... Qb6 {[%clk 0:02:46]} 11. O-O {[%clk 0:02:42.3]}
11... g6 {[%clk 0:02:43.6]} 12. Kh1 {[%clk 0:02:34.2]} 12... h6 {[%clk
0:02:33.6]} 13. Nd1 {[%clk 0:01:38]} 13... Bb7 {[%clk 0:02:30]} 14. c3 {[%clk
0:01:38.1]} 14... a5 {[%clk 0:02:19]} 15. a3 {[%clk 0:01:28.3]} 15... Kd8 {[%clk
0:01:51.5]} 16. dxc5 {[%clk 0:01:10.5]} 16... Bxc5 {[%clk 0:01:49.9]} 17. Nd4
{[%clk 0:01:08.3]} 17... Nxd4 {[%clk 0:01:42.5]} 18. cxd4 {[%clk 0:00:58.5]}
18... Be7 {[%clk 0:01:40.1]} 19. Nc3 {[%clk 0:00:57.9]} 19... Ba6 {[%clk
0:01:33.7]} 20. Qe2 {[%clk 0:00:47.7]} 20... b4 {[%clk 0:01:15.2]} 21. Nb5
{[%clk 0:00:45.1]} 21... Rb8 {[%clk 0:01:03.3]} 22. a4 {[%clk 0:00:44.2]} 22...
Ke8 {[%clk 0:00:57.2]} 23. Rac1 {[%clk 0:00:39.8]} 23... Kf8 {[%clk 0:00:51.9]}
24. g4 {[%clk 0:00:40.4]} 24... Bb7 {[%clk 0:00:32.4]} 25. Kg1 {[%clk
0:00:28.2]} 25... Bc6 {[%clk 0:00:24.1]} 26. h3 {[%clk 0:00:20.4]} 26... Ke8
{[%clk 0:00:21.3]} 27. Kh2 {[%clk 0:00:19.5]} 27... Rc8 {[%clk 0:00:18.2]} 28.
f5 {[%clk 0:00:19.1]} 28... gxf5 {[%clk 0:00:15.7]} 29. gxf5 {[%clk 0:00:20]}
29... Qb8 {[%clk 0:00:14.5]} 30. fxe6 {[%clk 0:00:16.6]} 30... fxe6 {[%clk
0:00:15.2]} 31. Qh5+ {[%clk 0:00:12.5]} 31... Kd8 {[%clk 0:00:15.6]} 32. Rf7
{[%clk 0:00:11.8]} 32... Bxb5 {[%clk 0:00:11.2]} 33. Bxb5 {[%clk 0:00:08.4]}
33... Rxc1 {[%clk 0:00:09.5]} 34. Bxc1 {[%clk 0:00:09.3]} 34... Qc7 {[%clk
0:00:08.8]} 35. Qd1 {[%clk 0:00:06.3]} 35... h5 {[%clk 0:00:07]} 36. Bf4 {[%clk
0:00:06]} 36... Bh4 {[%clk 0:00:06.2]} 37. Rxd7+ {[%clk 0:00:04.1]} 37... Qxd7
{[%clk 0:00:06.2]} 38. Bxd7 {[%clk 0:00:05]} 38... Kxd7 {[%clk 0:00:07]} 39. Qd3
{[%clk 0:00:05.3]} 39... Rb8 {[%clk 0:00:05.2]} 40. Qh7+ {[%clk 0:00:05.3]}
40... Kc6 {[%clk 0:00:05]} 41. Qxh5 {[%clk 0:00:04.4]} 41... Be7 {[%clk
0:00:05.2]} 42. Qf7 {[%clk 0:00:03.9]} 42... Kd7 {[%clk 0:00:05.1]} 43. Bg5
{[%clk 0:00:04.5]} 43... Re8 {[%clk 0:00:05.3]} 44. h4 {[%clk 0:00:04.8]} 44...
Kd8 {[%clk 0:00:04.7]} 45. Kh3 {[%clk 0:00:03.3]} 45... Bxg5 {[%clk 0:00:03.9]}
46. hxg5 {[%clk 0:00:04.2]} 46... Re7 {[%clk 0:00:04.6]} 47. Qf8+ {[%clk
0:00:03.8]} 47... Re8 {[%clk 0:00:05.3]} 48. Qd6+ {[%clk 0:00:03.4]} 1-0

[Event "Early-Titled-Tuesday-Blitz-July-09-2024"]
[Site "Chess.com"]
[Date "2024.07.09"]
[Round "2"]
[White "chesslh93"]
[Black "Mr_ruthless"]
[Result "1/2-1/2"]
[WhiteElo "2333"]
[BlackElo "2519"]
[TimeControl "180+1"]
[EndTime "8:17:52 PDT"]
[Termination "Game drawn by repetition"]

1. e4 {[%clk 0:03:00.9]} 1... c5 {[%clk 0:02:59.8]} 2. Nf3 {[%clk 0:03:00.6]}
2... Nc6 {[%clk 0:03:00.5]} 3. d4 {[%clk 0:03:00.7]} 3... cxd4 {[%clk
0:03:01.4]} 4. Nxd4 {[%clk 0:03:01.4]} 4... g6 {[%clk 0:03:02.1]} 5. Nc3 {[%clk
0:03:01.5]} 5... Bg7 {[%clk 0:03:02.4]} 6. Be3 {[%clk 0:03:02]} 6... Nf6 {[%clk
0:03:03]} 7. Bc4 {[%clk 0:03:01.9]} 7... Qa5 {[%clk 0:03:03.6]} 8. O-O {[%clk
0:03:01.5]} 8... O-O {[%clk 0:03:02]} 9. Bb3 {[%clk 0:03:01.6]} 9... d6 {[%clk
0:03:02.1]} 10. h3 {[%clk 0:03:00.5]} 10... Bd7 {[%clk 0:03:01.8]} 11. Re1
{[%clk 0:03:00.7]} 11... a6 {[%clk 0:02:58.3]} 12. Nf3 {[%clk 0:02:59.3]} 12...
b5 {[%clk 0:02:56.5]} 13. Nd5 {[%clk 0:02:54.3]} 13... Nxd5 {[%clk 0:02:47.7]}
14. exd5 {[%clk 0:02:52.6]} 14... Ne5 {[%clk 0:02:48.1]} 15. Nxe5 {[%clk
0:02:50.6]} 15... Bxe5 {[%clk 0:02:49]} 16. Bd4 {[%clk 0:02:49.3]} 16... Qc7
{[%clk 0:02:37.7]} 17. Bxe5 {[%clk 0:02:44.5]} 17... dxe5 {[%clk 0:02:38.6]} 18.
Qe2 {[%clk 0:02:43.2]} 18... a5 {[%clk 0:02:28]} 19. a3 {[%clk 0:02:28.6]} 19...
a4 {[%clk 0:02:27.6]} 20. Ba2 {[%clk 0:02:28.8]} 20... Rfe8 {[%clk 0:01:39.2]}
21. c3 {[%clk 0:02:17.8]} 21... Qd6 {[%clk 0:01:20.4]} 22. Qxe5 {[%clk
0:02:17.6]} 22... Rac8 {[%clk 0:01:16]} 23. Re3 {[%clk 0:01:54.3]} 23... h5
{[%clk 0:01:07.8]} 24. Rae1 {[%clk 0:01:46.4]} 24... Qxe5 {[%clk 0:00:53.2]} 25.
Rxe5 {[%clk 0:01:47.3]} 25... Kf8 {[%clk 0:00:52.8]} 26. R5e3 {[%clk 0:01:29.8]}
26... Bf5 {[%clk 0:00:52.1]} 27. Bb1 {[%clk 0:01:09.5]} 27... Bxb1 {[%clk
0:00:50.6]} 28. Rxb1 {[%clk 0:01:10.4]} 28... Rc5 {[%clk 0:00:47.7]} 29. Rd1
{[%clk 0:01:10.2]} 29... Rd8 {[%clk 0:00:48]} 30. Red3 {[%clk 0:01:05.2]} 30...
h4 {[%clk 0:00:43.9]} 31. Rd4 {[%clk 0:01:05.1]} 31... g5 {[%clk 0:00:44.2]} 32.
Kf1 {[%clk 0:01:01.2]} 32... Rd6 {[%clk 0:00:40.5]} 33. g3 {[%clk 0:00:55.8]}
33... hxg3 {[%clk 0:00:39]} 34. fxg3 {[%clk 0:00:56.7]} 34... Kg7 {[%clk
0:00:35.7]} 35. Kg2 {[%clk 0:00:49.4]} 35... f5 {[%clk 0:00:33]} 36. h4 {[%clk
0:00:44.7]} 36... g4 {[%clk 0:00:24.6]} 37. Kf2 {[%clk 0:00:39.6]} 37... Kf6
{[%clk 0:00:24.6]} 38. Ke3 {[%clk 0:00:38.9]} 38... e5 {[%clk 0:00:24.4]} 39.
dxe6 {[%clk 0:00:37.4]} 39... Rxe6+ {[%clk 0:00:24.9]} 40. Kf2 {[%clk
0:00:37.7]} 40... Rce5 {[%clk 0:00:25.1]} 41. R4d2 {[%clk 0:00:34.8]} 41... Re3
{[%clk 0:00:25.4]} 42. Kg2 {[%clk 0:00:25.1]} 42... Re2+ {[%clk 0:00:18]} 43.
Kf1 {[%clk 0:00:25.3]} 43... R2e3 {[%clk 0:00:17.1]} 44. Kf2 {[%clk 0:00:23.8]}
44... Rf3+ {[%clk 0:00:17.4]} 45. Kg2 {[%clk 0:00:17.8]} 45... Ree3 {[%clk
0:00:08.4]} 46. Rd6+ {[%clk 0:00:18]} 46... Ke7 {[%clk 0:00:09]} 47. Rd7+ {[%clk
0:00:18.2]} 47... Ke8 {[%clk 0:00:09.4]} 48. Rd8+ {[%clk 0:00:18.5]} 48... Ke7
{[%clk 0:00:10.1]} 49. R8d7+ {[%clk 0:00:18.8]} 49... Ke6 {[%clk 0:00:10.6]} 50.
R7d6+ {[%clk 0:00:19]} 50... Ke7 {[%clk 0:00:11.1]} 51. Rd7+ {[%clk 0:00:19.3]}
1/2-1/2

[Event "Early-Titled-Tuesday-Blitz-July-09-2024"]
[Site "Chess.com"]
[Date "2024.07.09"]
[Round "2"]
[White "abelmat"]
[Black "Payyappat"]
[Result "1-0"]
[WhiteElo "2124"]
[BlackElo "2420"]
[TimeControl "180+1"]
[EndTime "8:17:53 PDT"]
[Termination "abelmat won on time"]

1. d4 {[%clk 0:03:00.9]} 1... Nf6 {[%clk 0:02:59.6]} 2. c4 {[%clk 0:03:00.1]}
2... c5 {[%clk 0:03:00]} 3. Nf3 {[%clk 0:02:59.7]} 3... e6 {[%clk 0:03:00.9]} 4.
Nc3 {[%clk 0:02:56.7]} 4... cxd4 {[%clk 0:02:58.1]} 5. Nxd4 {[%clk 0:02:57.2]}
5... Nc6 {[%clk 0:02:59]} 6. g3 {[%clk 0:02:55.9]} 6... d5 {[%clk 0:02:56.8]} 7.
cxd5 {[%clk 0:02:54]} 7... Nxd5 {[%clk 0:02:53.1]} 8. Bg2 {[%clk 0:02:49.5]}
8... Bc5 {[%clk 0:02:52.2]} 9. Nxc6 {[%clk 0:02:47.6]} 9... bxc6 {[%clk
0:02:53.1]} 10. O-O {[%clk 0:02:45.5]} 10... O-O {[%clk 0:02:51.2]} 11. Qa4
{[%clk 0:02:39.7]} 11... Qb6 {[%clk 0:02:46.6]} 12. Qh4 {[%clk 0:02:26.7]} 12...
Bd4 {[%clk 0:02:36.1]} 13. Na4 {[%clk 0:02:17.7]} 13... Qb4 {[%clk 0:02:30.6]}
14. Bxd5 {[%clk 0:01:29.1]} 14... exd5 {[%clk 0:02:20]} 15. e3 {[%clk
0:01:04.8]} 15... Qxa4 {[%clk 0:01:44.8]} 16. Qxd4 {[%clk 0:01:03.6]} 16... Qc2
{[%clk 0:01:40.8]} 17. b3 {[%clk 0:00:54.9]} 17... Qe2 {[%clk 0:01:37.1]} 18.
Bb2 {[%clk 0:00:52.6]} 18... f6 {[%clk 0:01:31.4]} 19. Rfe1 {[%clk 0:00:38.9]}
19... Qh5 {[%clk 0:01:27.2]} 20. Rac1 {[%clk 0:00:36.6]} 20... Bh3 {[%clk
0:01:26.1]} 21. Qh4 {[%clk 0:00:29.7]} 21... Qf5 {[%clk 0:01:05.2]} 22. Rxc6
{[%clk 0:00:26.4]} 22... g5 {[%clk 0:00:36]} 23. Qh6 {[%clk 0:00:25.6]} 23...
Rac8 {[%clk 0:00:15.1]} 24. Rxf6 {[%clk 0:00:24.4]} 24... Rxf6 {[%clk
0:00:14.2]} 25. Qxf6 {[%clk 0:00:24.3]} 25... Qxf6 {[%clk 0:00:14.2]} 26. Bxf6
{[%clk 0:00:24.5]} 26... Rc2 {[%clk 0:00:13.3]} 27. Bxg5 {[%clk 0:00:23.1]}
27... Rxa2 {[%clk 0:00:13.1]} 28. Rb1 {[%clk 0:00:21.3]} 28... Kf7 {[%clk
0:00:12.5]} 29. b4 {[%clk 0:00:21]} 29... Ke6 {[%clk 0:00:12.8]} 30. Bf4 {[%clk
0:00:20.8]} 30... Kf5 {[%clk 0:00:13]} 31. b5 {[%clk 0:00:19.9]} 31... Ke4
{[%clk 0:00:13.1]} 32. Rd1 {[%clk 0:00:19.5]} 32... Kf3 {[%clk 0:00:13.1]} 33.
Rc1 {[%clk 0:00:18.3]} 33... Rxf2 {[%clk 0:00:12.9]} 34. b6 {[%clk 0:00:16.8]}
34... axb6 {[%clk 0:00:11.3]} 35. Rb1 {[%clk 0:00:16.4]} 35... b5 {[%clk
0:00:09.9]} 36. Bd6 {[%clk 0:00:15.3]} 36... Re2 {[%clk 0:00:06]} 37. Rc1 {[%clk
0:00:13.9]} 37... b4 {[%clk 0:00:04.8]} 38. Bxb4 {[%clk 0:00:13.5]} 38... Rxe3
{[%clk 0:00:01]} 39. Rc3 {[%clk 0:00:13.2]} 39... d4 {[%clk 0:00:01.2]} 40.
Rxe3+ {[%clk 0:00:12.8]} 1-0

[Event "Early-Titled-Tuesday-Blitz-July-09-2024"]
[Site "Chess.com"]
[Date "2024.07.09"]
[Round "2"]
[White "Alenzer"]
[Black "TitarovVasiliYouTube"]
[Result "1-0"]
[WhiteElo "2178"]
[BlackElo "2535"]
[TimeControl "180+1"]
[EndTime "8:17:54 PDT"]
[Termination "Alenzer won by resignation"]

1. e4 {[%clk 0:02:54.6]} 1... Nf6 {[%clk 0:02:57.8]} 2. e5 {[%clk 0:02:52.9]}
2... Nd5 {[%clk 0:02:57.7]} 3. d4 {[%clk 0:02:53.5]} 3... d6 {[%clk 0:02:57.6]}
4. Bc4 {[%clk 0:02:53.6]} 4... Nb6 {[%clk 0:02:55]} 5. Bb3 {[%clk 0:02:54.1]}
5... dxe5 {[%clk 0:02:53.4]} 6. Qh5 {[%clk 0:02:54.1]} 6... e6 {[%clk
0:02:53.5]} 7. dxe5 {[%clk 0:02:54.5]} 7... Nc6 {[%clk 0:02:53.1]} 8. Nf3 {[%clk
0:02:54.5]} 8... Be7 {[%clk 0:02:47.5]} 9. O-O {[%clk 0:02:52.2]} 9... O-O
{[%clk 0:02:39.8]} 10. Nc3 {[%clk 0:02:51.6]} 10... Na5 {[%clk 0:02:05.6]} 11.
Ne4 {[%clk 0:02:50.2]} 11... Nxb3 {[%clk 0:01:59.6]} 12. axb3 {[%clk 0:02:50.5]}
12... Bd7 {[%clk 0:01:31.8]} 13. Bg5 {[%clk 0:02:39.8]} 13... Bc6 {[%clk
0:01:25.6]} 14. Nf6+ {[%clk 0:02:01.6]} 14... gxf6 {[%clk 0:01:18.2]} 15. Bh6
{[%clk 0:02:01.1]} 15... f5 {[%clk 0:00:41.3]} 16. Bxf8 {[%clk 0:01:52.3]} 16...
Qxf8 {[%clk 0:00:30.9]} 17. h4 {[%clk 0:01:28.4]} 17... Qg7 {[%clk 0:00:25.9]}
18. Kh1 {[%clk 0:01:25.6]} 18... Qg6 {[%clk 0:00:22.5]} 19. Qxg6+ {[%clk
0:01:23.4]} 19... hxg6 {[%clk 0:00:23.2]} 20. c3 {[%clk 0:01:21.9]} 20... Bxf3
{[%clk 0:00:21.3]} 21. gxf3 {[%clk 0:01:22.6]} 21... Bxh4 {[%clk 0:00:22.2]} 22.
Kg2 {[%clk 0:01:23.4]} 22... Kg7 {[%clk 0:00:20.3]} 23. Rh1 {[%clk 0:01:23.4]}
23... Be7 {[%clk 0:00:20.1]} 24. c4 {[%clk 0:01:22.8]} 24... a5 {[%clk
0:00:20.1]} 25. Rad1 {[%clk 0:01:22.9]} 25... Bc5 {[%clk 0:00:20.3]} 26. Rh4
{[%clk 0:01:20.9]} 26... a4 {[%clk 0:00:20.1]} 27. bxa4 {[%clk 0:01:19.6]} 27...
Rxa4 {[%clk 0:00:21]} 28. b3 {[%clk 0:01:19.3]} 28... Ra8 {[%clk 0:00:19.6]} 29.
Rdh1 {[%clk 0:01:19.1]} 29... Rg8 {[%clk 0:00:19.3]} 30. f4 {[%clk 0:01:16.2]}
30... Be7 {[%clk 0:00:17.9]} 31. Rh7+ {[%clk 0:01:14.2]} 31... Kf8 {[%clk
0:00:17.9]} 32. Ra1 {[%clk 0:01:14.6]} 32... Rg7 {[%clk 0:00:15.2]} 33. Rh8+
{[%clk 0:01:14.5]} 33... Rg8 {[%clk 0:00:15.4]} 34. Rh7 {[%clk 0:01:15.2]} 34...
Ke8 {[%clk 0:00:13.6]} 35. Ra7 {[%clk 0:01:14.9]} 35... Kd7 {[%clk 0:00:12.6]}
36. Rxb7 {[%clk 0:01:14.4]} 36... Ra8 {[%clk 0:00:08.4]} 37. Rxf7 {[%clk
0:01:13.7]} 37... Kc6 {[%clk 0:00:08.6]} 38. Rxb6+ {[%clk 0:01:12]} 38... cxb6
{[%clk 0:00:07.1]} 39. Rxe7 {[%clk 0:01:12.6]} 39... Kc5 {[%clk 0:00:07.7]} 40.
Rxe6 {[%clk 0:01:12.2]} 40... Ra3 {[%clk 0:00:08.3]} 41. Rxg6 {[%clk 0:01:10.4]}
41... Rxb3 {[%clk 0:00:07.4]} 42. Rf6 {[%clk 0:01:08.5]} 42... Kxc4 {[%clk
0:00:06.3]} 43. Rxf5 {[%clk 0:01:08.9]} 43... Kd4 {[%clk 0:00:05.9]} 44. Rf8
{[%clk 0:01:05.4]} 44... Kd5 {[%clk 0:00:04.7]} 45. Rd8+ {[%clk 0:01:05.3]}
45... Ke6 {[%clk 0:00:04.4]} 46. Rd6+ {[%clk 0:01:05.1]} 46... Ke7 {[%clk
0:00:04.6]} 47. f3 {[%clk 0:01:04.5]} 47... b5 {[%clk 0:00:04.7]} 48. Kg3 {[%clk
0:01:04.9]} 48... b4 {[%clk 0:00:05.1]} 49. Kg4 {[%clk 0:01:03.7]} 49... Rb1
{[%clk 0:00:05]} 50. Rb6 {[%clk 0:01:03.3]} 50... b3 {[%clk 0:00:05]} 51. Kf5
{[%clk 0:01:04]} 51... b2 {[%clk 0:00:04.8]} 52. Rb7+ {[%clk 0:01:03.7]} 52...
Kd8 {[%clk 0:00:05.3]} 53. Ke6 {[%clk 0:01:01.7]} 53... Kc8 {[%clk 0:00:05.5]}
54. Rb5 {[%clk 0:01:00.3]} 54... Kc7 {[%clk 0:00:05.7]} 55. f5 {[%clk
0:00:59.9]} 55... Kc6 {[%clk 0:00:06]} 56. Rb3 {[%clk 0:01:00]} 56... Kc5 {[%clk
0:00:06.3]} 57. f6 {[%clk 0:00:59.9]} 57... Kc4 {[%clk 0:00:06.6]} 58. Rb8
{[%clk 0:01:00.3]} 58... Rf1 {[%clk 0:00:06.2]} 59. Rxb2 {[%clk 0:00:59.9]}
59... Rxf3 {[%clk 0:00:06.7]} 60. f7 {[%clk 0:01:00.4]} 60... Rf2 {[%clk
0:00:07.5]} 61. Rxf2 {[%clk 0:01:00.2]} 1-0

[Event "Early-Titled-Tuesday-Blitz-July-09-2024"]
[Site "Chess.com"]
[Date "2024.07.09"]
[Round "2"]
[White "arctic_t00"]
[Black "FormerProdigy"]
[Result "0-1"]
[WhiteElo "2647"]
[BlackElo "2987"]
[TimeControl "180+1"]
[EndTime "8:17:56 PDT"]
[Termination "FormerProdigy won on time"]

1. Nf3 {[%clk 0:03:00.9]} 1... d5 {[%clk 0:02:58.9]} 2. g3 {[%clk 0:03:01.3]}
2... Nd7 {[%clk 0:02:58.7]} 3. d4 {[%clk 0:03:00.6]} 3... Nb6 {[%clk 0:02:59]}
4. Nc3 {[%clk 0:02:59.3]} 4... Nf6 {[%clk 0:02:57.4]} 5. Bg2 {[%clk 0:02:58.6]}
5... Bf5 {[%clk 0:02:53.8]} 6. Nh4 {[%clk 0:02:58.7]} 6... e6 {[%clk 0:02:53.3]}
7. Nxf5 {[%clk 0:02:58.2]} 7... exf5 {[%clk 0:02:54.2]} 8. Qd3 {[%clk
0:02:57.5]} 8... g6 {[%clk 0:02:49.1]} 9. Bg5 {[%clk 0:02:57]} 9... Bg7 {[%clk
0:02:45]} 10. a4 {[%clk 0:02:54.6]} 10... a5 {[%clk 0:02:41]} 11. b3 {[%clk
0:02:48.5]} 11... O-O {[%clk 0:02:37.7]} 12. O-O {[%clk 0:02:44.9]} 12... c6
{[%clk 0:02:34.7]} 13. Bxf6 {[%clk 0:02:43.2]} 13... Qxf6 {[%clk 0:02:35.6]} 14.
e3 {[%clk 0:02:43]} 14... h5 {[%clk 0:02:26.7]} 15. Ne2 {[%clk 0:02:35.5]} 15...
h4 {[%clk 0:02:19.3]} 16. Rab1 {[%clk 0:02:34.1]} 16... Rfd8 {[%clk 0:02:03]}
17. c4 {[%clk 0:02:29]} 17... Bf8 {[%clk 0:01:49.9]} 18. Nf4 {[%clk 0:02:07.9]}
18... Bh6 {[%clk 0:01:46.5]} 19. Ne2 {[%clk 0:02:00.2]} 19... Bf8 {[%clk
0:01:46.6]} 20. Nf4 {[%clk 0:01:57.2]} 20... Bd6 {[%clk 0:01:46.6]} 21. Ne2
{[%clk 0:01:50.8]} 21... Bb4 {[%clk 0:01:42.7]} 22. Qc2 {[%clk 0:01:26.8]} 22...
Rac8 {[%clk 0:01:26.7]} 23. Nf4 {[%clk 0:01:23.3]} 23... dxc4 {[%clk 0:01:20.2]}
24. bxc4 {[%clk 0:01:23]} 24... c5 {[%clk 0:01:20.8]} 25. d5 {[%clk 0:01:05.9]}
25... Re8 {[%clk 0:01:02.5]} 26. Rfd1 {[%clk 0:01:04.7]} 26... Rcd8 {[%clk
0:01:02.5]} 27. d6 {[%clk 0:00:55]} 27... Rxd6 {[%clk 0:01:00.7]} 28. Bxb7
{[%clk 0:00:53.4]} 28... Red8 {[%clk 0:00:58.1]} 29. Nd5 {[%clk 0:00:39.6]}
29... Nxd5 {[%clk 0:00:57.1]} 30. Bxd5 {[%clk 0:00:39.4]} 30... Kg7 {[%clk
0:00:54.5]} 31. Kg2 {[%clk 0:00:33.1]} 31... Rh8 {[%clk 0:00:52.4]} 32. Bf3
{[%clk 0:00:24.9]} 32... hxg3 {[%clk 0:00:41.8]} 33. hxg3 {[%clk 0:00:24.9]}
33... Rxd1 {[%clk 0:00:31]} 34. Rxd1 {[%clk 0:00:25.8]} 34... g5 {[%clk
0:00:31.5]} 35. Rh1 {[%clk 0:00:11.7]} 35... Rxh1 {[%clk 0:00:20.2]} 36. Kxh1
{[%clk 0:00:12.1]} 36... f4 {[%clk 0:00:21.1]} 37. Kg2 {[%clk 0:00:04.2]} 37...
fxe3 {[%clk 0:00:16.2]} 38. fxe3 {[%clk 0:00:04.6]} 38... Bc3 {[%clk 0:00:15.4]}
39. Be4 {[%clk 0:00:02.5]} 39... Be5 {[%clk 0:00:15.2]} 40. Bf3 {[%clk
0:00:02.9]} 40... Bc7 {[%clk 0:00:13.3]} 41. Qe4 {[%clk 0:00:02.4]} 41... Qd6
{[%clk 0:00:12.6]} 42. Qg4 {[%clk 0:00:02]} 42... Qd2+ {[%clk 0:00:11.8]} 43.
Kh3 {[%clk 0:00:01.9]} 43... Qxe3 {[%clk 0:00:12.7]} 44. Be4 {[%clk 0:00:01]}
44... Qc1 {[%clk 0:00:12.5]} 45. Qf5 {[%clk 0:00:01]} 45... Qe3 {[%clk
0:00:07.8]} 46. Qh7+ {[%clk 0:00:01]} 46... Kf8 {[%clk 0:00:06]} 47. Qh8+ {[%clk
0:00:01.5]} 47... Ke7 {[%clk 0:00:06.5]} 0-1